fUSD/lending_fUSD_20260420
["ID","MTS","AMOUNT","RATE_DAILY","PERIOD"]
[420856560,1776645350507,433.33937017,0.00016226,30]
[420856561,1776645352085,500.0,9.057e-05,2]
[420856562,1776645362952,150.0,9.057e-05,2]
[420856563,1776645363747,183.22324351,9.057e-05,2]
[420856564,1776645363777,454.26647159,9.057e-05,2]
[420856565,1776645367247,797.0,9.057e-05,3]
[420856566,1776645376530,637.4897151,9.057e-05,2]
[420856567,1776645389136,500.0,9.057e-05,2]
[420856568,1776645401859,500.0,9.057e-05,2]
[420856569,1776645401896,274.9794302,9.057e-05,2]
[420856570,1776645421095,300.0,9.057e-05,2]
[420856571,1776645422047,637.4897151,9.057e-05,2]
[420856572,1776645442586,637.4897151,9.057e-05,2]
[420856573,1776645451488,500.0,9.057e-05,2]
[420856574,1776645451548,500.0,9.057e-05,2]
[420856575,1776645451590,274.9794302,9.057e-05,2]
[420856576,1776645475513,637.4897151,9.057e-05,2]
[420856577,1776645486700,757.0,9.057e-05,3]
[420856578,1776645508519,637.4897151,9.057e-05,2]
[420856579,1776645516949,500.0,9.057e-05,2]
[420856580,1776645517280,500.0,9.057e-05,2]
[420856581,1776645517612,500.0,9.057e-05,2]
[420856582,1776645517671,221.22223077,9.057e-05,2]
[420856583,1776645522824,300.0,9.057e-05,2]
[420856584,1776645537656,184.3193962,9.057e-05,2]
[420856585,1776645541152,300.0,9.057e-05,2]
[420856586,1776645542077,150.0,9.057e-05,2]
[420856587,1776645547067,720.0,9.057e-05,3]
[420856588,1776645586903,784.04,0.000165,30]
[420856589,1776645601448,300.0,9.057e-05,2]
[420856590,1776645601479,1200.0,9.057e-05,2]
[420856591,1776645606289,155.0,9.057e-05,3]
[420856592,1776645607386,684.0,9.057e-05,3]
[420856596,1776645621635,162.0,9.057e-05,3]
[420856597,1776645627309,2869.8,8.896e-05,2]
[420856598,1776645661330,300.0,9.057e-05,2]
[420856599,1776645668605,649.0,9.057e-05,3]
[420856600,1776645694750,2025.8906038,8.876e-05,2]
[420856601,1776645694772,253.5183962,8.876e-05,2]
[420856602,1776645694801,173.591,8.876e-05,2]
[420856603,1776645721142,300.0,9.057e-05,2]
[420856604,1776645722037,150.0,9.057e-05,2]
[420856605,1776645727541,617.0,9.057e-05,3]
[420856606,1776645753293,738.082804,9.012e-05,2]
[420856607,1776645792040,586.0,9.057e-05,3]
[420856608,1776645827891,150.0,8.759e-05,2]
[420856609,1776645841157,242.0,9.057e-05,2]
[420856610,1776645846960,557.0,9.057e-05,3]
[420856611,1776645901120,1200.0,9.057e-05,2]
[420856612,1776645902182,150.0,9.057e-05,2]
[420856613,1776645921573,150.0,8.137e-05,2]
[420856614,1776645921695,150.0,8.137e-05,2]
[420856615,1776645921746,150.0,8.589e-05,2]
[420856616,1776645921822,150.0,9.041e-05,2]
[420856617,1776645924509,150.0,8.137e-05,2]
[420856618,1776645924550,150.0,8.227e-05,2]
[420856619,1776645924688,150.0,8.408e-05,2]
[420856620,1776645924768,150.0,8.499e-05,2]
[420856621,1776645924987,150.0,8.318e-05,2]
[420856622,1776645925021,150.0,8.679e-05,2]
[420856623,1776645925050,150.0,8.77e-05,2]
[420856624,1776645925100,150.0,8.589e-05,2]
[420856625,1776645925131,150.0,8.951e-05,2]
[420856626,1776645925161,150.0,8.86e-05,2]
[420856627,1776645925192,284.23043053,9.041e-05,2]
[420856628,1776645927882,150.0,8.137e-05,2]
[420856629,1776645927937,150.0,8.589e-05,2]
[420856630,1776645927991,150.0,9.041e-05,2]
[420856631,1776645928107,150.0,8.137e-05,2]
[420856632,1776645928168,150.0,9.041e-05,2]
[420856633,1776645928231,150.0,8.137e-05,2]
[420856634,1776645928314,150.0,8.137e-05,2]
[420856635,1776645928383,150.0,8.438e-05,2]
[420856636,1776645928455,150.0,8.74e-05,2]
[420856637,1776645928517,150.0,9.041e-05,2]
[420856638,1776645934477,150.0,8.137e-05,2]
[420856639,1776645934561,150.0,8.589e-05,2]
[420856640,1776645934615,150.0,9.041e-05,2]
[420856641,1776645934679,150.0,8.137e-05,2]
[420856642,1776645934752,150.0,8.137e-05,2]
[420856643,1776645934783,150.0,8.589e-05,2]
[420856644,1776645934855,98.58736927,9.041e-05,2]
[420856645,1776645934882,87.07333617,9.041e-05,2]
[420856646,1776645940783,150.0,8.137e-05,2]
[420856647,1776645941611,150.0,9.041e-05,2]
[420856648,1776645941641,150.0,8.137e-05,2]
[420856649,1776645941671,150.0,9.041e-05,2]
[420856650,1776645953002,152.0,8.675e-05,7]
[420856651,1776645953702,152.0,8.675e-05,7]
[420856652,1776645964087,150.0,8.137e-05,2]
[420856653,1776645967289,529.0,9.057e-05,3]
[420856654,1776645974600,150.0,8.137e-05,2]
[420856655,1776645974664,150.0,8.589e-05,2]
[420856656,1776645974710,183.56823945,9.041e-05,2]
[420856657,1776646028593,502.0,9.057e-05,3]
[420856660,1776646076088,241.42,8.758e-05,2]
[420856661,1776646082178,300.0,9.057e-05,2]
[420856662,1776646086409,477.0,9.057e-05,3]
[420856663,1776646104783,150.0,9.057e-05,2]
[420856664,1776646141233,300.0,9.057e-05,2]
[420856671,1776646165794,453.0,9.057e-05,3]
[420856672,1776646180493,5510.02176055,8.958e-05,2]
[420856673,1776646180520,10000.01,8.958e-05,2]
[420856674,1776646180546,10000.01,8.958e-05,2]
[420856675,1776646180572,10000.01,8.958e-05,2]
[420856676,1776646180597,10000.01,8.958e-05,2]
[420856677,1776646180621,10000.01,8.958e-05,2]
[420856678,1776646180646,10000.01,8.958e-05,2]
[420856679,1776646180673,10000.01,8.958e-05,2]
[420856680,1776646180699,10000.01,8.958e-05,2]
[420856681,1776646201509,1200.0,8.957e-05,2]
[420856682,1776646201540,300.0,8.957e-05,2]
[420856685,1776646232306,-550.23948953,8.958e-05,2]
[420856686,1776646232318,-83708.38644992,8.958e-05,2]
[420856687,1776646232327,-98780.2694,8.958e-05,2]
[420856688,1776646232337,-370.2411,8.958e-05,2]
[420856689,1776646232347,-158.0,8.958e-05,3]
[420856690,1776646232356,-496904.88159996,9.058e-05,2]
[420856691,1776646232368,-11261.81289998,9.058e-05,2]
[420856692,1776646232379,-696.20302202,9.058e-05,2]
[420856693,1776646232443,-699.49483532,9.058e-05,2]
[420856694,1776646232520,-831.64957871,9.058e-05,2]
[420856695,1776646232531,-93477.24244382,9.058e-05,2]
[420856696,1776646232543,-1263.52532736,9.058e-05,2]
[420856697,1776646232574,-723.749995,9.058e-05,2]
[420856698,1776646232585,-472.0526679,9.058e-05,2]
[420856715,1776646241672,-194.8915,8.958e-05,2]
[420856716,1776646242066,-670.48004675,9.058e-05,2]
[420856717,1776646242079,-1349.90711029,9.058e-05,2]
[420856718,1776646242091,-1041.30749209,9.058e-05,2]
[420856719,1776646242116,-33028.70170551,9.058e-05,2]
[420856720,1776646242127,-600.0,9.058e-05,2]
[420856721,1776646242150,-1583.41443103,9.058e-05,2]
[420856722,1776646242169,-1260.0,9.058e-05,2]
[420856723,1776646242180,-956.485885,9.058e-05,2]
[420856724,1776646242210,-1019.324999,9.058e-05,2]
[420856725,1776646242221,-1881.50588421,9.058e-05,2]
[420856726,1776646242233,-8794.02795487,9.058e-05,2]
[420856727,1776646242244,-898.06061579,9.058e-05,2]
[420856728,1776646242256,-1188.74622491,9.058e-05,2]
[420856729,1776646242624,-7797.00312763,9.058e-05,2]
[420856730,1776646242708,-831600.42215285,9.058e-05,2]
[420856731,1776646242718,-152.0,9.059e-05,7]
[420856732,1776646242727,-152.0,9.059e-05,7]
[420856733,1776646242737,-248.77,9.059e-05,2]
[420856734,1776646242746,-184.83,9.163e-05,2]
[420856735,1776646242757,-1543.89,9.608e-05,2]
[420856736,1776646242766,-1600.0,9.636e-05,2]
[420856737,1776646242775,-500.0,9.654e-05,2]
[420856738,1776646242785,-500.19912278,9.654e-05,2]
[420856739,1776646242794,-500.0,9.654e-05,2]
[420856740,1776646242804,-500.0,9.654e-05,2]
[420856741,1776646242813,-500.0,9.654e-05,2]
[420856742,1776646242822,-500.0,9.654e-05,2]
[420856743,1776646242832,-500.0,9.654e-05,2]
[420856744,1776646242842,-500.0,9.654e-05,2]
[420856745,1776646242852,-7824.84,9.738e-05,2]
[420856746,1776646242861,-1680.0,9.852e-05,2]
[420856747,1776646242871,-667.57526895,9.9e-05,2]
[420856748,1776646242880,-158.0,9.961e-05,3]
[420856749,1776646242890,-255.0,9.962e-05,2]
[420856750,1776646242899,-155.0,9.999e-05,2]
[420856751,1776646242909,-693.33,0.0001,2]
[420856752,1776646242918,-500.0,0.0001,2]
[420856753,1776646242928,-817.89904936,0.0001,2]
[420856754,1776646242937,-200.0,0.0001,2]
[420856755,1776646242947,-500.0,0.0001,2]
[420856756,1776646242956,-500.0,0.0001,2]
[420856757,1776646242966,-500.0,0.0001,2]
[420856758,1776646242976,-500.0,0.0001,2]
[420856759,1776646242986,-500.0,0.0001,2]
[420856760,1776646242995,-500.0,0.0001,2]
[420856761,1776646243005,-500.0,0.0001,2]
[420856762,1776646243014,-500.0,0.0001,2]
[420856763,1776646243024,-500.0,0.0001,2]
[420856764,1776646243033,-500.0,0.0001,2]
[420856765,1776646243043,-500.0,0.0001,2]
[420856766,1776646243052,-500.0,0.0001,2]
[420856767,1776646243062,-500.0,0.0001,2]
[420856768,1776646243072,-500.0,0.0001,2]
[420856769,1776646243082,-151.0,0.0001,2]
[420856770,1776646243091,-151.0,0.0001,2]
[420856771,1776646243101,-151.0,0.0001,2]
[420856772,1776646243110,-151.0,0.0001,2]
[420856773,1776646243120,-151.0,0.0001,2]
[420856774,1776646243129,-151.0,0.0001,2]
[420856775,1776646243139,-151.0,0.0001,2]
[420856776,1776646243148,-151.0,0.0001,2]
[420856777,1776646243158,-151.0,0.0001,2]
[420856778,1776646243168,-151.0,0.0001,2]
[420856779,1776646243177,-151.0,0.0001,2]
[420856780,1776646243187,-151.0,0.0001,2]
[420856781,1776646243196,-151.0,0.0001,2]
[420856782,1776646243206,-151.0,0.0001,2]
[420856783,1776646243660,-151.0,0.0001,2]
[420856784,1776646243689,-151.0,0.0001,2]
[420856785,1776646243698,-151.0,0.0001,2]
[420856786,1776646243711,-151.0,0.0001,2]
[420856787,1776646243720,-151.0,0.0001,2]
[420856788,1776646243730,-151.0,0.0001,2]
[420856789,1776646243739,-151.0,0.0001,2]
[420856790,1776646243748,-151.0,0.0001,2]
[420856791,1776646243758,-151.0,0.0001,2]
[420856792,1776646243768,-151.0,0.0001,2]
[420856793,1776646243777,-151.0,0.0001,2]
[420856794,1776646243787,-151.0,0.0001,2]
[420856795,1776646243796,-151.0,0.0001,2]
[420856796,1776646243806,-151.0,0.0001,2]
[420856797,1776646243815,-151.0,0.0001,2]
[420856798,1776646243825,-151.0,0.0001,2]
[420856799,1776646243834,-151.0,0.0001,2]
[420856801,1776646243844,-151.0,0.0001,2]
[420856803,1776646243853,-151.0,0.0001,2]
[420856804,1776646243863,-151.0,0.0001,2]
[420856805,1776646243872,-689.83730503,0.0001,2]
[420856806,1776646243881,-683.72,0.00010124,2]
[420856807,1776646243890,-407.64216351,0.00010202,2]
[420856808,1776646243899,-500.0,0.00010202,2]
[420856809,1776646243909,-500.0,0.00010202,2]
[420856810,1776646243919,-693.33,0.00010274,2]
[420856811,1776646243928,-311.98503294,0.00010317,2]
[420856812,1776646243938,-670.58624095,0.00010317,2]
[420856813,1776646243947,-200.0,0.00010317,2]
[420856814,1776646243956,-578.20924308,0.00010317,2]
[420856815,1776646243966,-151.0,0.00010317,2]
[420856816,1776646243975,-500.0,0.00010317,2]
[420856817,1776646243984,-194.72792766,0.00010317,2]
[420856818,1776646243994,-151.0,0.00010317,2]
[420856819,1776646244004,-279.9045709,0.00010317,2]
[420856820,1776646244013,-500.0,0.00010372,2]
[420856821,1776646244023,-151.0,0.00010372,2]
[420856822,1776646244033,-72424.1425663,0.00010379,2]
[420856823,1776646244042,-500.0,0.00010427,2]
[420856824,1776646244051,-151.0,0.00010427,2]
[420856825,1776646244061,-817.89904934,0.00010429,2]
[420856826,1776646244072,-1500.0,0.00010441,2]
[420856827,1776646244081,-500.0,0.00010482,2]
[420856828,1776646244091,-151.0,0.00010482,2]
[420856829,1776646244101,-500.0,0.00010537,2]
[420856830,1776646244110,-151.0,0.00010537,2]
[420856831,1776646244120,-693.33,0.00010548,2]
[420856832,1776646244130,-260.592825,0.00010592,2]
[420856833,1776646244140,-500.0,0.00010592,2]
[420856834,1776646244150,-151.0,0.00010592,2]
[420856835,1776646244160,-500.0,0.00010647,2]
[420856836,1776646244170,-151.0,0.00010647,2]
[420856837,1776646244179,-500.0,0.00010702,2]
[420856838,1776646244189,-151.0,0.00010702,2]
[420856839,1776646244199,-500.0,0.00010757,2]
[420856840,1776646244208,-259.13,0.00010767,2]
[420856841,1776646244217,-500.0,0.00010812,2]
[420856842,1776646244227,-693.33,0.00010822,2]
[420856843,1776646244237,-2351.0,0.00010837,2]
[420856844,1776646244246,-1600.0,0.0001084,2]
[420856845,1776646244256,-201.93286099,0.00010865,2]
[420856846,1776646244265,-290.26104003,0.00010865,2]
[420856847,1776646244274,-500.0,0.00010867,2]
[420856848,1776646244284,-5000.0,0.00010877,2]
[420856849,1776646244293,-1092.98866463,0.000109,2]
[420856850,1776646244303,-1092.98866457,0.000109,2]
[420856851,1776646244313,-1092.98866457,0.000109,2]
[420856852,1776646244323,-1092.98866457,0.000109,2]
[420856853,1776646244333,-1092.98866457,0.000109,2]
[420856854,1776646244343,-1560.0,0.00010948,5]
[420856855,1776646244352,-1253.0,0.00010948,5]
[420856856,1776646244363,-416.0,0.00010958,2]
[420856857,1776646244372,-500.0,0.00010959,2]
[420856858,1776646244382,-3240.0,0.00010959,2]
[420856859,1776646244392,-150.0,0.00010959,2]
[420856860,1776646244401,-204.14699303,0.00010959,2]
[420856861,1776646244411,-158.0,0.00010964,3]
[420856862,1776646244421,-155.0,0.00010999,2]
[420856863,1776646244431,-1092.98866457,0.00011059,2]
[420856864,1776646244440,-693.33,0.00011096,2]
[420856865,1776646244450,-300.0,0.00011098,2]
[420856866,1776646244460,-8249.32909945,0.00011099,2]
[420856867,1776646244469,-8249.32909939,0.00011099,2]
[420856868,1776646244479,-8249.32909939,0.00011099,2]
[420856869,1776646244488,-8249.32909939,0.00011099,2]
[420856870,1776646244498,-8249.32909939,0.00011099,2]
[420856871,1776646244507,-8249.32909939,0.00011099,2]
[420856872,1776646244516,-8249.32909939,0.00011099,2]
[420856873,1776646244525,-8192.27692704,0.00011099,2]
[420856874,1776646244535,-8192.276927,0.00011099,2]
[420856875,1776646244544,-8192.276927,0.00011099,2]
[420856876,1776646244554,-8192.276927,0.00011099,2]
[420856877,1776646244563,-8192.276927,0.00011099,2]
[420856878,1776646244573,-8192.276927,0.00011099,2]
[420856879,1776646244583,-8192.276927,0.00011099,2]
[420856880,1776646244592,-623.0,0.00011111,2]
[420856881,1776646244602,-1349.339,0.00011111,2]
[420856882,1776646244611,-1047.542,0.00011111,2]
[420856883,1776646244620,-3529.0,0.00011111,2]
[420856884,1776646244630,-927.0,0.00011111,2]
[420856885,1776646244639,-1219.0,0.00011111,2]
[420856886,1776646244648,-416.0,0.00011111,2]
[420856887,1776646244658,-2473.0,0.00011111,2]
[420856888,1776646244668,-151.0,0.00011111,2]
[420856889,1776646244677,-151.0,0.00011111,2]
[420856890,1776646244686,-173.930041,0.00011111,2]
[420856891,1776646244696,-151.0,0.00011111,2]
[420856892,1776646244705,-151.0,0.00011111,2]
[420856893,1776646244715,-10000.0,0.000112,2]
[420856894,1776646244724,-239.670687,0.00011246,2]
[420856895,1776646244733,-239.670687,0.00011246,2]
[420856896,1776646244743,-239.670687,0.00011246,2]
[420856897,1776646244752,-239.670687,0.00011246,2]
[420856898,1776646244762,-8249.32909939,0.00011246,2]
[420856899,1776646244771,-8192.276927,0.00011246,2]
[420856900,1776646244780,-151.0,0.00011256,2]
[420856901,1776646244790,-151.0,0.00011256,2]
[420856902,1776646244799,-500.92228137,0.00011313,2]
[420856903,1776646244809,-300.0,0.00011314,2]
[420856904,1776646244818,-151.0,0.00011315,2]
[420856905,1776646244827,-151.0,0.00011315,2]
[420856906,1776646244836,-693.33461589,0.0001137,2]
[420856907,1776646244846,-209.40437684,0.00011413,2]
[420856908,1776646244855,-301.00069851,0.00011413,2]
[420856909,1776646244865,-1092.98866457,0.0001148,2]
[420856910,1776646244874,-150.0,0.00011525,2]
[420856911,1776646244884,-151.0,0.00011548,2]
[420856912,1776646244893,-218.2,0.0001156,2]
[420856913,1776646244902,-216.13,0.0001156,2]
[420856914,1776646244912,-151.29,0.0001156,2]
[420856915,1776646244921,-8249.32909939,0.00011573,2]
[420856916,1776646244930,-8192.276927,0.00011573,2]
[420856917,1776646244940,-160.0,0.00011662,2]
[420856918,1776646244949,-994.416031,0.00011662,2]
[420856919,1776646244959,-1828.832063,0.00011662,2]
[420856920,1776646244968,-221.12794322,0.00011686,2]
[420856921,1776646244978,-500.0,0.0001176,2]
[420856922,1776646244987,-500.0,0.0001176,2]
[420856923,1776646244996,-500.0,0.0001176,2]
[420856924,1776646245005,-500.0,0.0001176,2]
[420856925,1776646245015,-500.0,0.0001176,2]
[420856926,1776646245024,-500.0,0.0001176,2]
[420856927,1776646245033,-500.0,0.0001176,2]
[420856928,1776646245043,-500.0,0.0001176,2]
[420856929,1776646245052,-500.0,0.0001176,2]
[420856930,1776646245062,-500.0,0.0001176,2]
[420856931,1776646245072,-500.0,0.0001176,2]
[420856932,1776646245081,-500.0,0.0001176,2]
[420856933,1776646245091,-500.0,0.0001176,2]
[420856934,1776646245101,-500.0,0.0001176,2]
[420856935,1776646245110,-500.0,0.0001176,2]
[420856936,1776646245120,-500.0,0.0001176,2]
[420856937,1776646245129,-500.0,0.0001176,2]
[420856938,1776646245138,-500.0,0.0001176,2]
[420856939,1776646245147,-500.0,0.0001176,2]
[420856940,1776646245157,-500.0,0.0001176,2]
[420856941,1776646245166,-500.0,0.0001176,2]
[420856942,1776646245175,-500.0,0.0001176,2]
[420856943,1776646245185,-500.0,0.0001176,2]
[420856944,1776646245194,-500.0,0.0001176,2]
[420856945,1776646245204,-500.0,0.0001176,2]
[420856946,1776646245214,-500.0,0.0001176,2]
[420856947,1776646245223,-500.0,0.0001176,2]
[420856948,1776646245233,-500.0,0.0001176,2]
[420856949,1776646245242,-500.0,0.0001176,2]
[420856950,1776646245252,-500.0,0.0001176,2]
[420856951,1776646245261,-500.0,0.0001176,2]
[420856952,1776646245270,-500.0,0.0001176,2]
[420856953,1776646245279,-500.0,0.0001176,2]
[420856954,1776646245289,-500.0,0.0001176,2]
[420856955,1776646245298,-500.0,0.0001176,2]
[420856956,1776646245307,-500.0,0.0001176,2]
[420856957,1776646245316,-500.0,0.0001176,2]
[420856958,1776646245326,-500.0,0.0001176,2]
[420856959,1776646245336,-500.0,0.0001176,2]
[420856960,1776646245345,-500.0,0.0001176,2]
[420856961,1776646245355,-500.0,0.0001176,2]
[420856962,1776646245364,-500.0,0.0001176,2]
[420856963,1776646245374,-500.0,0.0001176,2]
[420856964,1776646245384,-500.0,0.0001176,2]
[420856965,1776646245394,-500.0,0.0001176,2]
[420856966,1776646245404,-500.0,0.0001176,2]
[420856967,1776646245413,-500.0,0.0001176,2]
[420856968,1776646245423,-500.0,0.0001176,2]
[420856969,1776646245432,-500.0,0.0001176,2]
[420856970,1776646245442,-500.0,0.0001176,2]
[420856971,1776646245451,-500.0,0.0001176,2]
[420856972,1776646245460,-2000.0,0.0001176,2]
[420856973,1776646245469,-2000.0,0.0001176,2]
[420856974,1776646245478,-500.0,0.0001176,2]
[420856975,1776646245487,-500.0,0.0001176,2]
[420856976,1776646245496,-500.0,0.0001176,2]
[420856977,1776646245505,-500.0,0.0001176,2]
[420856978,1776646245514,-500.0,0.0001176,2]
[420856979,1776646245523,-500.0,0.0001176,2]
[420856980,1776646245532,-160.0,0.0001176,2]
[420856981,1776646245542,-537.132164,0.0001176,2]
[420856982,1776646245551,-914.264329,0.0001176,2]
[420856983,1776646245560,-160.0,0.0001176,2]
[420856984,1776646245569,-1413.952089,0.0001176,2]
[420856985,1776646245579,-2667.904179,0.0001176,2]
[420856986,1776646245587,-267.114556,0.0001176,2]
[420856987,1776646245597,-267.114556,0.0001176,2]
[420856988,1776646245607,-267.114556,0.0001176,2]
[420856989,1776646245618,-267.114556,0.0001176,2]
[420856990,1776646245628,-160.0,0.0001176,2]
[420856991,1776646245637,-1634.92694,0.0001176,2]
[420856992,1776646245647,-3109.85388,0.0001176,2]
[420856993,1776646245656,-160.0,0.0001176,2]
[420856994,1776646245666,-641.86186,0.0001176,2]
[420856995,1776646245676,-1123.723721,0.0001176,2]
[420856996,1776646245685,-151.0,0.0001176,2]
[420856997,1776646245695,-151.0,0.0001176,2]
[420856998,1776646245705,-2000.0,0.0001177,2]
[420856999,1776646245714,-300.0,0.00011773,2]
[420857000,1776646245724,-3452.5176727,0.00011774,2]
[420857001,1776646245733,-124958.0641487,0.00011774,2]
[420857002,1776646245742,-12790.6613738,0.00011774,2]
[420857003,1776646245751,-3123.6533895,0.00011774,2]
[420857004,1776646245761,-151.0,0.00011774,2]
[420857005,1776646245770,-151.0,0.00011774,2]
[420857006,1776646245780,-151.0,0.00011774,2]
[420857007,1776646245789,-151.0,0.00011774,2]
[420857008,1776646245799,-2000.0,0.00011786,2]
[420857009,1776646245808,-2000.0,0.00011787,2]
[420857010,1776646245817,-2000.0,0.000118,2]
[420857011,1776646245827,-2000.0,0.000118,2]
[420857012,1776646245836,-178.69802223,0.00011854,2]
[420857013,1776646245846,-182.26029094,0.00011854,2]
[420857014,1776646245855,-13144.38856254,0.00011854,2]
[420857015,1776646245864,-183.83319984,0.00011854,2]
[420857016,1776646245874,-1340.21538034,0.00011854,2]
[420857017,1776646245884,-239.670687,0.00011855,2]
[420857018,1776646245893,-239.670687,0.00011855,2]
[420857019,1776646245903,-239.670687,0.00011855,2]
[420857020,1776646245912,-239.670687,0.00011855,2]
[420857021,1776646245922,-151.0,0.00011882,2]
[420857022,1776646245931,-207.160839,0.00011882,2]
[420857023,1776646245941,-2000.0,0.00011882,2]
[420857024,1776646245950,-2000.0,0.00011882,2]
[420857025,1776646245959,-1881.39175183,0.00011882,2]
[420857026,1776646245968,-996.12130589,0.00011886,2]
[420857027,1776646245977,-151.0,0.00011886,2]
[420857028,1776646245987,-151.0,0.00011886,2]
[420857029,1776646245997,-353.38117866,0.0001189,2]
[420857030,1776646246007,-151.0,0.00011891,2]
[420857031,1776646246016,-151.0,0.00011891,2]
[420857032,1776646246026,-151.0,0.00011891,2]
[420857033,1776646246035,-267.114556,0.00011891,2]
[420857034,1776646246045,-267.114556,0.00011891,2]
[420857035,1776646246055,-267.114556,0.00011891,2]
[420857036,1776646246065,-267.114556,0.00011891,2]
[420857037,1776646246075,-151.0,0.00011891,2]
[420857038,1776646246085,-25000.0,0.00011891,2]
[420857039,1776646246095,-25000.0,0.00011891,2]
[420857040,1776646246105,-25000.0,0.00011891,2]
[420857041,1776646246114,-219.107056,0.00011897,2]
[420857042,1776646246124,-28235.77985892,0.000119,2]
[420857043,1776646246133,-25000.0,0.000119,2]
[420857044,1776646246143,-25000.0,0.000119,2]
[420857045,1776646246152,-25000.0,0.000119,2]
[420857046,1776646246162,-25000.0,0.000119,2]
[420857047,1776646246172,-22218.45900936,0.000119,2]
[420857048,1776646246182,-151.0,0.000119,2]
[420857049,1776646246192,-2112.96802395,0.000119,2]
[420857050,1776646246201,-817.89904934,0.000119,2]
[420857051,1776646246210,-239.670687,0.000119,2]
[420857052,1776646246220,-239.670687,0.000119,2]
[420857053,1776646246229,-239.670687,0.000119,2]
[420857054,1776646246238,-239.670687,0.000119,2]
[420857055,1776646246248,-8249.32909939,0.000119,2]
[420857057,1776646246257,-151.0,0.000119,2]
[420857058,1776646246267,-151.0,0.000119,2]
[420857059,1776646246277,-151.0,0.000119,2]
[420857060,1776646246286,-151.0,0.000119,2]
[420857061,1776646246295,-267.114556,0.000119,2]
[420857062,1776646246305,-267.114556,0.000119,2]
[420857063,1776646246314,-267.114556,0.000119,2]
[420857064,1776646246324,-1092.98866457,0.000119,2]
[420857065,1776646246333,-267.114556,0.000119,2]
[420857066,1776646246343,-21446.58568682,0.000119,2]
[420857067,1776646246352,-151.0,0.000119,2]
[420857068,1776646246362,-55518.09333562,0.000119,2]
[420857069,1776646246371,-539.06409308,0.000119,2]
[420857070,1776646246381,-1000.0,0.00011907,2]
[420857071,1776646246391,-3292.0,0.00011921,2]
[420857072,1776646246400,-1000.0,0.00011934,2]
[420857073,1776646246410,-167.48,0.0001195,2]
[420857074,1776646246419,-174.7,0.0001195,2]
[420857075,1776646246429,-174.7,0.0001195,2]
[420857076,1776646246438,-174.7,0.0001195,2]
[420857077,1776646246448,-174.7,0.0001195,2]
[420857078,1776646246458,-174.7,0.0001195,2]
[420857079,1776646246467,-174.7,0.0001195,2]
[420857080,1776646246477,-157.4443109,0.00011953,2]
[420857081,1776646246486,-247.61138644,0.00011961,2]
[420857082,1776646246495,-258.4613592,0.00011961,2]
[420857083,1776646246504,-158.0,0.00011968,3]
[420857084,1776646246513,-250.0,0.00011968,2]
[420857085,1776646246522,-500.0,0.00011973,2]
[420857086,1776646246532,-445.32,0.00011988,2]
[420857087,1776646246541,-311.72,0.00011988,2]
[420857088,1776646246551,-382.7,0.00011988,2]
[420857089,1776646246561,-396.95540984,0.0001199,2]
[420857090,1776646246570,-689.83730503,0.0001199,2]
[420857091,1776646246579,-689.83730503,0.0001199,2]